[Event "45th FIDE Womens Olympiad 2024"]
[Site "Budapest"]
[Date "2024.09.19"]
[Round "8.21"]
[White "Peng, Zhaoqin"]
[Black "Wagner, Dinara"]
[Result "1/2-1/2"]
[ECO "E14"]
[WhiteElo "2349"]
[BlackElo "2452"]
[Annotator "TA"]
[PlyCount "66"]
[EventDate "2024.09.05"]
[EventType "team-tourn"]
[EventCountry "HUN"]
[SourceTitle "playchess.com"]
[Source "ChessBase"]
[SourceQuality "1"]
[WhiteTeam "Netherlands"]
[BlackTeam "Germany"]
[WhiteTeamCountry "NED"]
[BlackTeamCountry "GER"]
[TimeControl "40/5400+30:1800+30"]

{[%evp 26,66,-9,-21,-15,-17,0,0,0,0,16,18,23,20,48,51,29,20,6,18,30,16,16,21,35,33,31,48,44,37,37,35,37,35,43,41,42,35,35,18,18,21,20]} 1. Nf3 {[%emt 0:00:03]} Nf6 {[%emt 0:00:05]} 2. c4 {[%emt 0:00:36]} e6 {[%emt 0:00:04]} 3. b3 {[%emt 0:01:14]} Be7 {[%emt 0:01:13]} 4. Bb2 {[%emt 0:00:35]} c5 {[%emt 0:00:03]} 5. e3 {[%emt 0:02:46]} b6 {[%emt 0:00:08]} 6. d4 {[%emt 0:04:58]} cxd4 {[%emt 0:00:52]} 7. exd4 {[%emt 0:00:35]} d5 {[%emt 0:00:11]} 8. Bd3 {[%emt 0:00:13]} O-O {[%emt 0:00:38]} 9. O-O {[%emt 0:02:46]} Bb7 {[%emt 0:01:14]} 10. Nbd2 {[%emt 0:04:30]} Nc6 {[%emt 0:00:49]} 11. Qe2 {[%emt 0:03:35]} Rc8 {[%emt 0:03:22]} 12. Rac1 {[%emt 0:00:44]} Re8 {[%emt 0:19:45]} 13. Rfd1 {[%emt 0:00:47]} Bf8 {[%emt 0:00:04]} 14. h3 {[%emt 0:10:09]} g6 {[%emt 0:01:03]} 15. Qe3 {[%emt 0:02:26]} Bg7 {[%emt 0:04:30]} 16. Ne5 {[%emt 0:08:23]} Nd7 {[%emt 0:23:57]} 17. Ndf3 {[%emt 0:14:36]} dxc4 {[%emt 0:25:36]} 18. Bxc4 {[%emt 0:06:44][%cal Oe5f7] Nxf7! would now be deadly.} (18. Nxf7 $5 Qe7 (18... Kxf7 19. Ng5+ $15) 19. Bxc4 Qxf7 (19... Kxf7 $2 {too greedy.} 20. Bxe6+ Qxe6 21. Ng5+ Kg8 22. Nxe6 $18) 20. Ng5 $16) 18... Ncxe5 {[%emt 0:01:17]} 19. dxe5 {[%emt 0:03:09]} Qe7 {[%emt 0:00:03]} 20. Bb5 {[%emt 0:06:48]} Bd5 {[%emt 0:00:13]} 21. Nd4 {[%emt 0:08:37] Black must now prevent Nc6.} Red8 {[%emt 0:01:07]} 22. Nc6 {[%emt 0:03:12]} Bxc6 {[%emt 0:00:02]} 23. Bxc6 {[%emt 0:01:03]} Nc5 {[%emt 0:00:55] [#] Hoping for ...Rxd1+.} 24. Bb5 {[%emt 0:01:38]} Rxd1+ {[%emt 0:05:39]} 25. Rxd1 {[%emt 0:00:03]} Rd8 {[%emt 0:00:02]} 26. Rxd8+ {[%emt 0:03:05]} Qxd8 {[%emt 0:00:03]} 27. Qd4 {[%emt 0:00:23]} Qxd4 {[%emt 0:06:59]} 28. Bxd4 $14 {[%emt 0:00:01][%mdl 4096] Endgame. KBB-KBN} Kf8 {[%emt 0:03:06]} 29. b4 {[%emt 0:01:12]} Nb7 {[%emt 0:00:02]} 30. a4 {[%emt 0:05:10]} Nd6 {[%emt 0:01:44]} 31. Bc6 {[%emt 0:01:42]} Nf5 {[%emt 0:00:22]} 32. Bc3 {[%emt 0:00:11]} Ne7 {[%emt 0:00:32]} 33. Bb7 {[%emt 0:01:51]} Nd5 {[%emt 0:00:10] Weighted Error Value: White=0.03 (flawless) /Black=0.05 (flawless) .  Inaccurate:     	---       	Black=1      OK:         	White=8     	Black=9      Best:        	---       	Black=1} 1/2-1/2

[Event "45th FIDE Womens Olympiad 2024"]
[Site "Budapest"]
[Date "2024.09.19"]
[Round "8.21"]
[White "Almusawi, Maram"]
[Black "Kovacova, Zuzana"]
[Result "0-1"]
[ECO "D20"]
[WhiteElo "1510"]
[BlackElo "2020"]
[PlyCount "146"]
[EventDate "2024.09.05"]
[EventType "team-tourn"]
[EventCountry "HUN"]
[WhiteTeam "Bahrain"]
[BlackTeam "Bermuda"]
[WhiteTeamCountry "BRN"]
[BlackTeamCountry "BER"]
[TimeControl "40/5400+30:1800+30"]

1. d4 d5 2. c4 dxc4 3. e3 e5 4. Bxc4 exd4 5. exd4 Nf6 6. Nc3 Be7 7. Nf3 O-O 8. h3 Nbd7 9. O-O Nb6 10. Bb3 c6 11. Bf4 Nbd5 12. Bh2 Bd6 13. Bxd6 Qxd6 14. Nxd5 Nxd5 15. Re1 Nf4 16. Ne5 Be6 17. Bc2 Rad8 18. Re4 Ng6 19. Nxg6 hxg6 20. h4 Bf5 21. Re1 Bxc2 22. Qxc2 Qxd4 23. Re4 Qf6 24. Rae1 Rd7 25. Qe2 Qf5 26. Re5 Qf6 27. Re8 Qd6 28. Rxf8+ Qxf8 29. Qg4 Qd8 30. h5 gxh5 31. Qxh5 Re7 32. Rxe7 Qxe7 33. Qd1 c5 34. Qd2 b6 35. Qc3 Qe6 36. a3 Qd5 37. Qe1 Kf8 38. Qe2 Qd4 39. Kh2 c4 40. Qc2 Qd3 41. Qa4 Qd6+ 42. Kg1 Qc7 43. Qb4+ Kg8 44. Qc3 b5 45. Kh1 Qd6 46. Kg1 Qf4 47. Qb4 a6 48. Qc3 g6 49. Qb4 Qd4 50. g3 Qd3 51. Kg2 Kg7 52. Kg1 Kf6 53. Kg2 Qd4 54. Kg1 Kf5 55. Kg2 Qd5+ 56. Kg1 Kg4 57. Kh2 Qd4 58. Kg2 Qe4+ 59. Kh2 Qe2 60. Kg2 Qf3+ 61. Kf1 Kh3 62. Qd2 Qd3+ 63. Ke1 Qxd2+ 64. Kxd2 Kg4 65. Ke3 f5 66. Ke2 g5 67. Ke3 f4+ 68. gxf4 gxf4+ 69. Ke4 a5 70. Ke5 Kf3 71. Kf5 b4 72. axb4 axb4 73. Ke5 c3 {0-} 0-1

[Event "45th FIDE Womens Olympiad 2024"]
[Site "Budapest"]
[Date "2024.09.19"]
[Round "8.22"]
[White "Paehtz, Elisabeth"]
[Black "Van Foreest, Machteld"]
[Result "1-0"]
[ECO "E04"]
[WhiteElo "2455"]
[BlackElo "2224"]
[Annotator "TA"]
[PlyCount "89"]
[EventDate "2024.09.05"]
[EventType "team-tourn"]
[EventCountry "HUN"]
[SourceTitle "playchess.com"]
[Source "ChessBase"]
[SourceQuality "1"]
[WhiteTeam "Germany"]
[BlackTeam "Netherlands"]
[WhiteTeamCountry "GER"]
[BlackTeamCountry "NED"]
[TimeControl "40/5400+30:1800+30"]

{[%evp 20,89,25,11,40,32,51,55,76,75,78,64,80,79,87,91,106,114,118,103,114,102,104,109,110,104,123,131,158,118,131,122,178,180,185,175,225,141,152,116,115,108,106,95,131,138,166,144,145,146,254,257,329,346,418,420,393,392,534,526,556,567,567,564,654,653,921,919,1054,1036,980,963]} 1. Nf3 {[%emt 0:00:02]} Nf6 {[%emt 0:00:10]} 2. g3 {[%emt 0:00:10]} d5 {[%emt 0:00:23]} 3. Bg2 {[%emt 0:00:07]} c5 {[%emt 0:01:45]} 4. O-O {[%emt 0:00:07]} Nc6 {[%emt 0:00:35]} 5. d4 {[%emt 0:00:03]} e6 {[%emt 0:09:46]} 6. c4 {[%emt 0:00:23]} dxc4 {[%emt 0:19:40]} 7. dxc5 {[%emt 0:03:48]} Qxd1 {[%emt 0:04:47]} 8. Rxd1 {[%emt 0:00:03]} Bxc5 {[%emt 0:00:07]} 9. Nbd2 {[%emt 0:00:02]} c3 {[%emt 0:00:07]} 10. bxc3 {[%emt 0:00:03]} O-O {[%emt 0:00:27]} 11. Nb3 {[%emt 0:01:22]} Bb6 {[%emt 0:04:23]} 12. Ba3 {[%emt 0:04:16]} Re8 {[%emt 0:00:21]} 13. Nfd2 {[%emt 0:17:25][%cal Bf3d2,Bd2c4,Bc4e5,Be5c6,Bc6d4][%mdl 32]} e5 {[%emt 0:10:43] [#] White is slightly better.} 14. Nc4 $1 {[%emt 0:02:40]} Bc7 {[%emt 0:10:31]} 15. Bd6 {[%emt 0:15:01] White is more active.} Be6 {[%emt 0:10:55]} 16. Nxe5 {[%emt 0:12:44]} Bxd6 {[%emt 0:00:05]} 17. Nxc6 {[%emt 0:00:07]} (17. Bxc6 $2 {too greedy.} bxc6 (17... Bxe5 $2 18. Bxe8 Rxe8 19. Rac1 $19) 18. Rxd6 Bxb3 19. axb3 Rxe5 $19) 17... Ba3 {[%emt 0:00:28][%cal Bd6a3,Ba3b2,Bb2c3,Bc3e5,Be5c7][%mdl 32]} 18. Ncd4 {[%emt 0:01:00] A dynamic duo of knights.} Bb2 {[%emt 0:06:05]} 19. Rab1 {[%emt 0:00:07]} Bxb3 {[%emt 0:02:29]} 20. Nxb3 {[%emt 0:02:39]} Bxc3 {[%emt 0:00:08]} 21. Bxb7 {[%emt 0:00:04]} Rab8 {[%emt 0:00:11]} 22. Bf3 {[%emt 0:00:07]} h6 {[%emt 0:02:30]} 23. Rbc1 {[%emt 0:02:29]} Be5 {[%emt 0:00:11]} 24. Rc6 {[%emt 0:01:36]} Re7 {[%emt 0:00:29]} 25. Ra6 {[%emt 0:00:24]} Rb6 {[%emt 0:02:19]} (25... g6 $16 26. Rc1 Kg7) 26. Rd8+ $18 {[%emt 0:00:55]} Kh7 {[%emt 0:00:07] [#]} 27. Ra4 {[%emt 0:00:28]} Bc7 {[%emt 0:09:29]} (27... g5 {was worth a try.} 28. e3 h5) 28. Rd3 {[%emt 0:00:50]} (28. Rxa7 $2 {is the wrong capture.} Bxd8 29. Ra8 Rd6 $19) 28... Bd6 {[%emt 0:00:26]} 29. Kg2 {[%emt 0:01:21]} Rc7 {[%emt 0:00:55]} 30. Nd2 {[%emt 0:06:14]} Bb4 {[%emt 0:00:34]} 31. a3 {[%emt 0:03:57]} Bxd2 {[%emt 0:01:18]} 32. Rxd2 {[%emt 0:00:03]} Nd7 {[%emt 0:00:48]} 33. h4 {[%emt 0:00:43]} Nf6 {[%emt 0:01:53]} 34. Ra5 {[%emt 0:03:46]} Re7 {[%emt 0:00:17]} (34... Re6 $16 35. h5 Rce7) 35. Rd8 {[%emt 0:01:01]} Ne8 {[%emt 0:01:27]} 36. Ra8 {[%emt 0:00:53]} Nd6 {[%emt 0:00:03]} 37. R8xa7 {[%emt 0:00:40]} Rxa7 {[%emt 0:00:06]} 38. Rxa7 {[%emt 0:00:03][%mdl 4096] Endgame. KRB-KRN} g5 {[%emt 0:00:31][%cal Bg7g5,Bg5h4][%mdl 32]} 39. a4 {[%emt 0:01:54][%cal Ba3a4,Ba4a5,Ba5a6,Ba6a7][%mdl 32] White is clearly winning.} gxh4 {[%emt 0:01:21]} 40. a5 {[%emt 0:00:36]} Rb5 {[%emt 0:00:52]} 41. Rd7 {[%emt 0:31:26] And now a6 would win.} Nc4 {[%emt 0:02:18]} 42. a6 {[%emt 0:00:00]} Ra5 {[%emt 0:04:27]} 43. a7 {[%emt 0:00:00]} Ne5 {[%emt 0:00:05]} 44. Be4+ {[%emt 0:00:00]} (44. a8=R Rxa8 $18) 44... Kg7 {[%emt 0:00:13]} 45. Rc7 {[%emt 0:00:00] Weighted Error Value: White=0.07 (flawless) /Black=0.28 (precise) .  Mistake:       	---       	Black=3      Inaccurate:     	White=1     	Black=3      OK:         	White=18    	Black=12     Best:        	White=1     	---        Strong:       	White=1     	---} ({Weaker is} 45. a8=R Rxa8 $18) 1-0

[Event "45th FIDE Womens Olympiad 2024"]
[Site "Budapest"]
[Date "2024.09.19"]
[Round "8.22"]
[White "Cancino, Shiela"]
[Black "Sharaf, Hawra"]
[Result "0-1"]
[ECO "D04"]
[WhiteElo "1663"]
[BlackElo "1595"]
[PlyCount "106"]
[EventDate "2024.09.05"]
[EventType "team-tourn"]
[EventCountry "HUN"]
[WhiteTeam "Bermuda"]
[BlackTeam "Bahrain"]
[WhiteTeamCountry "BER"]
[BlackTeamCountry "BRN"]
[TimeControl "40/5400+30:1800+30"]

1. d4 d5 2. Nf3 c6 3. e3 Nf6 4. Nbd2 Bg4 5. h3 Bh5 6. g4 Bg6 7. Ne5 Nbd7 8. Nxg6 hxg6 9. f4 e6 10. Nf3 Ne4 11. Rg1 Be7 12. g5 Qb6 13. a3 c5 14. Nd2 Nxd2 15. Qxd2 cxd4 16. exd4 Rc8 17. Rg3 Bd6 18. Rb3 Qc7 19. Rc3 Qd8 20. Rxc8 Qxc8 21. b3 Rh4 22. c4 Rxf4 23. cxd5 Re4+ 24. Kd1 Bg3 25. Be2 exd5 26. Qd3 Bf2 27. Bb2 Qd8 28. Bf3 Re3 29. Qd2 Re1+ 30. Kc2 Qc7+ 31. Kd3 Re3+ 32. Qxe3+ Bxe3 33. Kxe3 Qg3 34. h4 Qxh4 35. Rg1 Qh3 36. Bc1 f6 37. Kf2 Qf5 38. Kg3 fxg5 39. Re1+ Kd8 40. b4 Nf6 41. Bb2 Qf4+ 42. Kg2 Ne4 43. Bxe4 dxe4 44. Bc1 Qf3+ 45. Kg1 g4 46. Rf1 Qg3+ 47. Kh1 Qh3+ 48. Kg1 g3 49. Bg5+ Ke8 50. Rf4 Qh2+ 51. Kf1 g2+ 52. Ke2 g1=Q+ 53. Rf2 Qhxf2# {0-} 0-1

[Event "45th FIDE Womens Olympiad 2024"]
[Site "Budapest"]
[Date "2024.09.19"]
[Round "8.23"]
[White "Bensdorp-De Labaca, Marlies"]
[Black "Klek, Hanna Marie"]
[Result "1/2-1/2"]
[ECO "D26"]
[WhiteElo "2241"]
[BlackElo "2296"]
[Annotator "RC"]
[PlyCount "109"]
[EventDate "2024.09.05"]
[EventType "team-tourn"]
[EventCountry "HUN"]
[SourceTitle "playchess.com"]
[Source "ChessBase"]
[SourceQuality "1"]
[WhiteTeam "Netherlands"]
[BlackTeam "Germany"]
[WhiteTeamCountry "NED"]
[BlackTeamCountry "GER"]
[TimeControl "40/5400+30:1800+30"]

1. d4 {[%emt 0:00:03]} Nf6 {[%emt 0:00:07]} 2. c4 {[%emt 0:00:05]} e6 {[%emt 0:00:06]} 3. Nf3 {[%emt 0:00:03]} d5 {[%emt 0:00:12]} 4. e3 {[%emt 0:00:05]} dxc4 {[%emt 0:02:05]} 5. Bxc4 {[%emt 0:00:06]} a6 {[%emt 0:00:17]} 6. O-O {[%emt 0:00:26]} b5 {[%emt 0:03:14]} 7. Be2 {[%emt 0:00:06]} Nbd7 {[%emt 0:04:14]} 8. a4 {[%emt 0:01:06]} b4 {[%emt 0:01:21]} 9. Nbd2 {[%emt 0:01:19]} c5 {[%emt 0:01:22]} 10. Nc4 {[%emt 0:07:43]} a5 {[%emt 0:15:59]} 11. dxc5 {[%emt 0:02:37]} Bxc5 {[%emt 0:00:42]} 12. Nd6+ {[%emt 0:00:57]} Bxd6 {[%emt 0:03:54]} 13. Qxd6 {[%emt 0:00:06]} Qb6 {[%emt 0:01:05]} 14. Qxb6 {[%emt 0:09:54]} Nxb6 {[%emt 0:00:07]} 15. Ne5 {[%emt 0:00:18]} Ba6 {[%emt 0:07:05]} 16. Bxa6 {[%emt 0:12:19]} Rxa6 {[%emt 0:00:05]} 17. f3 {[%emt 0:00:06]} Nfd7 {[%emt 0:04:31]} 18. Nd3 {[%emt 0:16:33]} Ke7 {[%emt 0:03:27]} 19. b3 {[%emt 0:03:19]} Nd5 {[%emt 0:04:16]} 20. e4 {[%emt 0:13:08]} Nc3 {[%emt 0:00:17]} 21. Be3 {[%emt 0:00:17]} Rc8 {[%emt 0:01:44]} 22. Rf2 {[%emt 0:03:44]} Rd6 {[%emt 0:07:06]} 23. Nb2 {[%emt 0:07:17]} Nc5 {[%emt 0:07:33]} 24. Bxc5 {[%emt 0:04:11]} Rxc5 {[%emt 0:00:06]} 25. Kf1 {[%emt 0:00:13]} g6 {[%emt 0:04:48]} 26. Re1 {[%emt 0:01:57]} Rd4 {[%emt 0:02:12]} 27. Ra1 {[%emt 0:05:02]} f5 {[%emt 0:01:09]} 28. exf5 {[%emt 0:00:12]} gxf5 {[%emt 0:00:07]} 29. g3 {[%emt 0:07:32]} e5 {[%emt 0:01:04]} 30. Re1 {[%emt 0:00:20]} Ke6 {[%emt 0:01:06]} 31. Nc4 {[%emt 0:01:06]} Rdxc4 {[%emt 0:04:04]} 32. bxc4 {[%emt 0:00:07]} Nxa4 {[%emt 0:01:37]} 33. f4 {[%emt 0:00:52]} e4 {[%emt 0:00:11]} 34. g4 {[%emt 0:00:03]} Nc3 {[%emt 0:01:07]} 35. gxf5+ {[%emt 0:00:36]} Kxf5 {[%emt 0:00:41]} 36. Re3 {[%emt 0:00:06]} a4 {[%emt 0:06:35]} 37. Rh3 {[%emt 0:00:34]} Rxc4 {[%emt 0:01:21]} 38. Rh5+ {[%emt 0:00:19]} Kf6 {[%emt 0:01:44]} 39. Rd2 {[%emt 0:00:16]} e3 {[%emt 0:01:19]} 40. Rd6+ {[%emt 0:00:30]} Ke7 {[%emt 0:00:14]} 41. Ra6 {[%emt 0:30:34]} Rxf4+ {[%emt 0:36:35]} 42. Ke1 {[%emt 0:00:13]} Rf7 {[%emt 0:03:49]} 43. Re5+ {[%emt 0:01:45]} Kf8 {[%emt 0:00:30]} 44. Ra8+ {[%emt 0:01:13]} Kg7 {[%emt 0:00:08]} 45. Rxe3 {[%emt 0:00:07]} Rc7 {[%emt 0:00:00]} 46. Rg3+ {[%emt 0:00:00]} Kf6 {[%emt 0:00:00]} 47. Rg4 {[%emt 0:00:00]} Rb7 {[%emt 0:00:00]} 48. Kd2 {[%emt 0:00:00]} Kf5 {[%emt 0:00:00]} 49. h3 {[%emt 0:00:00]} a3 {[%emt 0:00:00]} 50. Ra5+ {[%emt 0:00:00]} Ke6 {[%emt 0:00:00]} 51. Kc2 {[%emt 0:00:00]} b3+ {[%emt 0:00:00]} 52. Kxc3 {[%emt 0:00:00]} b2 {[%emt 0:00:00]} 53. Rg1 {[%emt 0:00:00]} b1=Q {[%emt 0:00:00]} 54. Rxb1 {[%emt 0:00:00]} Rxb1 {[%emt 0:00:00]} 55. Rxa3 {[%emt 0:00:00]} 1/2-1/2

[Event "45th FIDE Womens Olympiad 2024"]
[Site "Budapest"]
[Date "2024.09.19"]
[Round "8.23"]
[White "Yaqoob, Wafa"]
[Black "Gontcharova, Olga"]
[Result "1-0"]
[ECO "C41"]
[WhiteElo "1438"]
[BlackElo "1567"]
[PlyCount "75"]
[EventDate "2024.09.05"]
[EventType "team-tourn"]
[EventCountry "HUN"]
[WhiteTeam "Bahrain"]
[BlackTeam "Bermuda"]
[WhiteTeamCountry "BRN"]
[BlackTeamCountry "BER"]
[TimeControl "40/5400+30:1800+30"]

1. e4 e5 2. Nf3 d6 3. Bc4 Be7 4. c3 Nf6 5. d3 Nbd7 6. Nbd2 O-O 7. O-O c6 8. Bb3 Qc7 9. Re1 b6 10. Nf1 Re8 11. Ng3 Bb7 12. Nh4 d5 13. Nhf5 g6 14. Nxe7+ Rxe7 15. Bg5 Qd6 16. Qf3 Kg7 17. h4 Rh8 18. h5 h6 19. Bh4 Qe6 20. exd5 cxd5 21. d4 g5 22. Nf5+ Kf8 23. Nxe7 Kxe7 24. Bg3 g4 25. Qe3 Nxh5 26. Bxe5 Rh7 27. Qd3 f6 28. Bxf6+ Nhxf6 29. Rxe6+ Kf7 30. Rxf6+ Nxf6 31. Qf5 Rg7 32. Re1 Rg5 33. Qe6+ Kg6 34. Bc2+ Kh5 35. Qxf6 g3 36. Bd1+ Kh4 37. Qxh6+ Rh5 38. Qxh5# 1-0

[Event "45th FIDE Womens Olympiad 2024"]
[Site "Budapest"]
[Date "2024.09.19"]
[Round "8.24"]
[White "Schulze, Lara"]
[Black "Kazarian, Anna-Maja"]
[Result "0-1"]
[ECO "C02"]
[WhiteElo "2283"]
[BlackElo "2180"]
[Annotator "RC"]
[PlyCount "92"]
[EventDate "2024.09.05"]
[EventType "team-tourn"]
[EventCountry "HUN"]
[SourceTitle "playchess.com"]
[Source "ChessBase"]
[SourceQuality "1"]
[WhiteTeam "Germany"]
[BlackTeam "Netherlands"]
[WhiteTeamCountry "GER"]
[BlackTeamCountry "NED"]
[TimeControl "40/5400+30:1800+30"]

1. e4 {[%emt 0:00:02]} e6 {[%emt 0:00:05]} 2. d4 {[%emt 0:00:07]} d5 {[%emt 0:00:04]} 3. e5 {[%emt 0:00:07]} c5 {[%emt 0:00:04]} 4. c3 {[%emt 0:00:06]} Nc6 {[%emt 0:00:06]} 5. Nf3 {[%emt 0:00:09]} Bd7 {[%emt 0:00:04]} 6. Be2 {[%emt 0:00:15]} Nge7 {[%emt 0:00:10]} 7. O-O {[%emt 0:00:31]} Nf5 {[%emt 0:05:49]} 8. dxc5 {[%emt 0:02:12]} a5 {[%emt 0:04:21]} 9. Bd3 {[%emt 0:06:54]} Nh4 {[%emt 0:09:59]} 10. Bf4 {[%emt 0:16:08]} Nxf3+ {[%emt 0:08:42]} 11. Qxf3 {[%emt 0:00:33]} g5 {[%emt 0:03:32]} 12. Bg3 {[%emt 0:02:42]} h5 {[%emt 0:01:11]} 13. h3 {[%emt 0:03:08]} Bxc5 {[%emt 0:01:31]} 14. Nd2 {[%emt 0:07:25]} Qe7 {[%emt 0:11:37]} 15. Qe2 {[%emt 0:15:39]} O-O-O {[%emt 0:08:38]} 16. b4 {[%emt 0:01:30]} axb4 {[%emt 0:01:01]} 17. cxb4 {[%emt 0:02:49]} Nxb4 {[%emt 0:04:42]} 18. Rfc1 {[%emt 0:03:12]} Nc6 {[%emt 0:11:43]} 19. Rab1 {[%emt 0:02:08]} Nd4 {[%emt 0:03:24]} 20. Qd1 {[%emt 0:13:57]} Bc6 {[%emt 0:01:20]} 21. Nb3 {[%emt 0:04:03]} Nxb3 {[%emt 0:02:10]} 22. Rxb3 {[%emt 0:01:03]} h4 {[%emt 0:07:12]} 23. Bh2 {[%emt 0:00:23]} Kc7 {[%emt 0:07:57]} 24. a4 {[%emt 0:07:18]} Ra8 {[%emt 0:01:57]} 25. Bb5 {[%emt 0:00:40]} Ra5 {[%emt 0:01:57]} 26. Qd2 {[%emt 0:03:11]} Rha8 {[%emt 0:01:27]} 27. Qc3 {[%emt 0:04:15]} Bxb5 {[%emt 0:01:24]} 28. Rxb5 {[%emt 0:00:45]} Rxb5 {[%emt 0:00:15]} 29. axb5 {[%emt 0:00:02]} b6 {[%emt 0:01:32]} 30. Kh1 {[%emt 0:00:03]} Qd7 {[%emt 0:00:50]} 31. Bg1 {[%emt 0:01:19]} Qxb5 {[%emt 0:00:22]} 32. Qd2 {[%emt 0:00:26]} Rg8 {[%emt 0:00:42]} 33. f4 {[%emt 0:01:40]} g4 {[%emt 0:00:29]} 34. Bxc5 {[%emt 0:00:58]} bxc5 {[%emt 0:00:02]} 35. Qf2 {[%emt 0:00:28]} Kc6 {[%emt 0:00:49]} 36. Qxh4 {[%emt 0:00:29]} Qb2 {[%emt 0:00:14]} 37. Rg1 {[%emt 0:00:51]} gxh3 {[%emt 0:00:10]} 38. g3 {[%emt 0:00:43]} Ra8 {[%emt 0:01:00]} 39. Qxh3 {[%emt 0:01:03]} Ra2 {[%emt 0:00:50]} 40. Qh8 {[%emt 0:00:38]} Kb7 {[%emt 0:00:25]} 41. Qh7 {[%emt 0:02:53]} Ka6 {[%emt 0:03:42]} 42. Qh8 {[%emt 0:02:34]} Qc2 {[%emt 0:03:34]} 43. Qc8+ {[%emt 0:01:02]} Kb5 {[%emt 0:00:14]} 44. Qe8+ {[%emt 0:00:25]} Kc4 {[%emt 0:00:17]} 45. Qh8 {[%emt 0:00:21]} Qe4+ {[%emt 0:00:05]} 46. Rg2 {[%emt 0:00:02]} Qxg2# {[%emt 0:00:05]} 0-1

[Event "45th FIDE Womens Olympiad 2024"]
[Site "Budapest"]
[Date "2024.09.19"]
[Round "8.25"]
[White "Mkrtchian, Lilit"]
[Black "Munkhzul, Turmunkh"]
[Result "1-0"]
[ECO "A29"]
[WhiteElo "2366"]
[BlackElo "2256"]
[Annotator "TA"]
[PlyCount "73"]
[EventDate "2024.09.05"]
[EventType "team-tourn"]
[EventCountry "HUN"]
[SourceTitle "playchess.com"]
[Source "ChessBase"]
[SourceQuality "1"]
[WhiteTeam "Armenia"]
[BlackTeam "Mongolia"]
[WhiteTeamCountry "ARM"]
[BlackTeamCountry "MGL"]
[TimeControl "40/5400+30:1800+30"]

{[%evp 21,73,0,18,16,54,54,52,58,95,98,160,160,154,149,141,135,158,119,183,197,201,204,201,200,192,205,236,224,258,279,258,268,307,313,318,320,298,306,360,345,377,340,463,454,415,428,676,657,634,553,1089,933,1371,1293]} 1. c4 {[%emt 0:00:13]} Nf6 {[%emt 0:00:17]} 2. Nc3 {[%emt 0:00:29]} e5 {[%emt 0:00:19]} 3. g3 {[%emt 0:01:06]} d5 {[%emt 0:00:38]} 4. cxd5 {[%emt 0:00:14]} Nxd5 {[%emt 0:00:06]} 5. Bg2 {[%emt 0:00:05]} Nb6 {[%emt 0:00:12]} 6. a3 {[%emt 0:00:09]} a5 {[%emt 0:01:11]} 7. d3 {[%emt 0:00:38]} Be7 {[%emt 0:03:06]} 8. Be3 {[%emt 0:00:17]} Nc6 {[%emt 0:03:11]} 9. Nf3 {[%emt 0:08:46]} O-O {[%emt 0:01:00]} 10. O-O {[%emt 0:00:05]} Be6 {[%emt 0:00:43]} 11. Rc1 {[%emt 0:03:56]} f5 {[%emt 0:03:05]} 12. Na4 {[%emt 0:05:50]} Nd5 {[%emt 0:11:14]} 13. Bc5 {[%emt 0:17:57]} Bd6 {[%emt 0:15:33]} 14. e4 {[%emt 0:09:01] White is slightly better.} Nb6 {[%emt 0:00:30]} 15. exf5 {[%emt 0:16:01]} Bxf5 {[%emt 0:09:11]} (15... Nxa4 $142 16. Bxd6 (16. Qxa4 Rxf5 17. Bh3 Rxf3 $16) 16... Rxf5) 16. Qb3+ {[%emt 0:07:29]} Kh8 {[%emt 0:00:15]} 17. Nxb6 {[%emt 0:01:13]} cxb6 {[%emt 0:00:18]} 18. Bxb6 {[%emt 0:01:24]} Qd7 {[%emt 0:03:34]} 19. Ng5 {[%emt 0:02:30] White is more active.} Qe7 {[%emt 0:11:55]} (19... h6 $16) 20. Ne4 $18 {[%emt 0:00:31]} Nd4 {[%emt 0:00:17]} 21. Bxd4 {[%emt 0:01:45]} exd4 {[%emt 0:03:25]} 22. Qd5 {[%emt 0:00:35][%csl LRd4,LRd6]} Bxe4 {[%emt 0:05:35]} 23. Bxe4 {[%emt 0:01:03]} Qf6 {[%emt 0:00:42] Black is weak on the light squares} 24. Rc2 $40 {[%emt 0:01:29][%mdl 128] White wants a kill.} Rac8 {[%emt 0:06:20]} 25. Rxc8 {[%emt 0:03:25]} Rxc8 {[%emt 0:00:05][%cal Bf8c8,Bc8c7,Bc7c2][%mdl 32]} 26. Qxa5 {[%emt 0:00:09]} Rc7 {[%emt 0:06:04]} 27. Qa8+ {[%emt 0:02:57]} Qf8 {[%emt 0:02:32]} 28. Bxb7 {[%emt 0:00:44]} Qxa8 {[%emt 0:00:32]} 29. Bxa8 {[%emt 0:00:04][%mdl 4096] Endgame. KRB-KRB} Rc2 {[%emt 0:00:25]} 30. Rb1 {[%emt 0:04:54]} Kg8 {[%emt 0:00:21]} 31. Be4 {[%emt 0:00:08]} h6 {[%emt 0:00:54]} 32. b4 {[%emt 0:00:16][%cal Bb2b4,Bb4b5,Bb5b6][%mdl 32]} Kf8 {[%emt 0:00:46]} 33. b5 {[%emt 0:03:20]} Ke7 {[%emt 0:02:19]} (33... Bxa3 $142 34. b6 Rc8) 34. b6 {[%emt 0:00:10]} Bb8 {[%emt 0:01:16]} 35. a4 {[%emt 0:01:35][%cal Ba3a4,Ba4a5][%mdl 32]} Kd6 {[%emt 0:01:17]} 36. a5 {[%emt 0:00:27]} Ra2 {[%emt 0:00:10]} 37. Rc1 {[%emt 0:00:43] Black got outplayed after the opening.   Weighted Error Value: White=0.08 (flawless) /Black=0.38.  Mistake:       	---       	Black=3      Inaccurate:     	---       	Black=4      OK:         	White=15    	Black=5      Best:        	---       	Black=1} 1-0

[Event "45th FIDE Womens Olympiad 2024"]
[Site "Budapest"]
[Date "2024.09.19"]
[Round "8.25"]
[White "Pg Hj Janudin, Dk Siti Haziqah"]
[Black "Swaminathan, Laia"]
[Result "0-1"]
[ECO "D35"]
[WhiteElo "1711"]
[BlackElo "1620"]
[PlyCount "58"]
[EventDate "2024.09.05"]
[EventType "team-tourn"]
[EventCountry "HUN"]
[WhiteTeam "Brunei Darussalam"]
[BlackTeam "Cayman Islands"]
[WhiteTeamCountry "BRN"]
[BlackTeamCountry "CAY"]
[TimeControl "40/5400+30:1800+30"]

1. d4 d5 2. c4 e6 3. cxd5 exd5 4. Nc3 Nf6 5. Nf3 Be7 6. Bf4 O-O 7. e3 Bf5 8. Bd3 Bxd3 9. Qxd3 Re8 10. O-O c6 11. Rac1 Nbd7 12. Ne2 Ne4 13. Ne5 Nxe5 14. Bxe5 Bd6 15. Bg3 Nxg3 16. fxg3 Qe7 17. Rf3 Qe4 18. Qb3 Re7 19. Nc3 Qg6 20. Re1 Rae8 21. Nd1 Qe6 22. Qc2 Bc7 23. Kh1 Bb6 24. Re2 Bxd4 25. Ref2 Bb6 26. Rf1 Qh6 27. Qf5 Qg6 28. Qxg6 hxg6 29. Re1 d4 {0-} 0-1